Cogmind - Beta 13 X2 @@@ ROGUE MODE // 2024.01.18 @ 19:31:31 Player: f3-rnm Result: Destroyed by as-73244 with Assembled Blade Performance ------------- Evolutions (0) 0 Regions Visited (2) 400 Robots Destroyed (17) 85 Value Destroyed (352) 352 Prototype IDs (0) 0 Alien Tech Used (0) 0 Bonus (0) 0 TOTAL SCORE: 837 Bonus ------- None Cogmind --------- Core Integrity 0/250 Matter 255/300 Energy 100/100 System Corruption 3% Temperature Cool (0) Movement Treading (240) Ox1 Location -10/Mines Parts ------- > --- POWER (1) -------- (None) > --- PROPULSION (2) --- Light Treads > --- UTILITY (2) ------ Large Storage Unit Light Armor Plating > --- WEAPON (2) ------- Light Cannon > --- INVENTORY (15) --- Light Treads Wheel High-capacity Storage Unit High-capacity Storage Unit Large Matter Pod (150) Targeting Computer Light Cannon Light Cannon Grenade Launcher Grenade Launcher Peak State ------------ > --- POWER ------------ Ion Engine > --- PROPULSION ------- Light Treads Light Treads > --- UTILITY ---------- Large Storage Unit Light Armor Plating > --- WEAPON ----------- Small Laser Assault Rifle > --- INVENTORY -------- Ion Engine Wheel High-capacity Storage Unit High-capacity Storage Unit Targeting Computer Light Armor Plating Light Armor Plating Light Cannon Grenade Launcher Grenade Launcher [Rating: 8] Favorites ----------- Power Ion Engine Engine Ion Engine Propulsion Light Treads Treads Light Treads Utility Large Storage Unit Storage Large Storage Unit Protection Light Armor Plating Weapon Assault Rifle Energy Gun Small Laser Ballistic Gun Assault Rifle Ballistic Cannon Light Cannon Build | -11 -10 -10 ------- Run | Yrd Mat Min Slots Evolved . | . . . Power . | . . . Propulsion . | . . . Utility . | . . . Weapon . | . . . Parts Attached 14 | 6 3 5 Power 2 | 1 . 1 Engine 2 | 1 . 1 Core . | . . . Reactor . | . . . Propulsion 3 | 2 . 1 Treads 3 | 2 . 1 Leg . | . . . Wheel . | . . . Hover . | . . . Flight . | . . . Utility 5 | 1 2 2 Device . | . . . Storage 2 | 1 1 . Processor . | . . . Hackware . | . . . Protection 3 | . 1 2 Artifact . | . . . Weapon 4 | 2 1 1 Energy Gun 1 | 1 . . Energy Cannon . | . . . Ballistic Gun 1 | 1 . . Ballistic Cannon 2 | . 1 1 Launcher . | . . . Special Weapon . | . . . Impact Weapon . | . . . Slashing Weapon . | . . . Piercing Weapon . | . . . Special Melee Weapon . | . . . Unidentified Prototypes . | . . . Parts Lost 8 | . . 8 Power 2 | . . 2 Propulsion 2 | . . 2 Utility 2 | . . 2 Weapon 2 | . . 2 Highest Loss Streak 8 | . . 8 To Critical Strikes . | . . . Average Slot Usage (%) 97 | . 96 99 Engine 14 | . 14 14 Treads 27 | . 28 27 Storage 14 | . 14 14 Protection 12 | . 10 14 Energy Gun 5 | . 11 . Ballistic Gun 13 | . 14 13 Ballistic Cannon 8 | . 2 14 Naked Turns . | . . . Heaviest Build 33 | 13 33 33 Greatest Support 40 | 40 40 40 Greatest Overweight (x) 1 | . . 1 Average Overweight (x) . | . . . Largest Inventory Capacity 15 | 8 15 15 Average Capacity 14 | 6 14 15 Most Carried 15 | 4 15 15 Average Carried 11 | 1 9 14 Final Capacity 15 | 8 15 15 Final Carried 15 | 2 15 10 Class Distribution -------------------- 100% | Mutant Dominant Class ---------------- Mutant | -10/Materials Mutant | -10/Mines Resources | -11 -10 -10 ----------- Run | Yrd Mat Min Matter Collected 575 | 212 321 42 Remotely . | . . . Salvage Created 486 | . 450 36 Parts 46 | . 39 7 Haulers Intercepted 1 | . 1 . Recyclers Shooed . | . . . Parts Field Recycled . | . . . Retrieved Matter . | . . . Parts Self-Destructed . | . . . Prevented . | . . . Kills | -11 -10 -10 ------- Run | Yrd Mat Min Combat Hostiles Destroyed 12 | . 9 3 Guns 9 | . 9 . Cannons 3 | . . 3 Classes Destroyed 8 | . 6 2 Worker 1 | . 1 . Tunneler 1 | . . 1 Hauler 1 | . 1 . Recycler 1 | . 1 . Watcher 1 | . 1 . Swarmer 5 | . 3 2 Grunt 6 | . 6 . Demolisher 1 | . . 1 Best Kill Streak 4 | . 4 2 Combat Bots Only 4 | . 4 2 Max Kills in Single Turn 1 | . 1 1 Gunslinging . | . . . Exploded . | . . . Melee . | . . . Uniques/NPCs Destroyed . | . . . Combat | -11 -10 -10 -------- Run | Yrd Mat Min Hostile Shots Fired 80 | . 39 41 Missed 15 | . 10 5 Damage Taken 1241 | . 330 911 Core 252 | . 112 140 Absorbed by Shields . | . . . Core Remaining (%) 100 | 100 . . Volleys Fired 42 | . 33 9 Largest 2 | . 2 2 Hottest 60 | . 60 55 Shots Fired 83 | . 65 18 Gun 72 | . 63 9 Cannon 11 | . 2 9 Launcher . | . . . Special . | . . . Kinetic 53 | . 35 18 Thermal 30 | . 30 . Explosive . | . . . Electromagnetic . | . . . Robot Hit Streak 13 | . 13 6 Robot Miss Streak 4 | . 4 2 Penetration Max . | . . . Secondary Targets . | . . . Shots Hit Robots 50 | . 38 12 Core Hits 23 | . 19 4 Critical Kills . | . . . Critical Parts Destroyed . | . . . Critical Strikes . | . . . Melee Attacks . | . . . Impact . | . . . Slashing . | . . . Piercing . | . . . Sneak Attacks . | . . . Combat Hostiles . | . . . Follow-up Attacks . | . . . Damage Inflicted 653 | . 475 178 Guns 550 | . 475 75 Cannons 103 | . . 103 Explosions . | . . . Melee . | . . . Ramming . | . . . Kinetic 459 | . 281 178 Thermal 194 | . 194 . Explosive . | . . . Electromagnetic . | . . . Impact . | . . . Slashing . | . . . Piercing . | . . . Highest Corruption . | . . . Average Corruption . | . . . Corruption Purged . | . . . Corruption Blocked . | . . . Overload Shots . | . . . Overflow Damage . | . . . Projectiles . | . . . Explosions . | . . . Melee . | . . . Knockbacks 3 | . . 3 Impact . | . . . Kinetic 3 | . . 3 Secondary . | . . . Self-Inflicted Damage . | . . . Shots . | . . . Rammed . | . . . Targets Rammed . | . . . Kicked . | . . . Crushed . | . . . Highest Temperature 168 | . 168 9 Average Temperature 48 | . 58 3 Received Heat Transfer 138 | . 138 . Siege Activations . | . . . Robots Corrupted . | . . . Combat Hostiles . | . . . Parts Fried . | . . . Impact Corruptions . | . . . Robots Melted . | . . . Combat Hostiles . | . . . Parts Melted 1 | . 1 . Heat Transferred 425 | . 425 . Parts Sabotaged . | . . . Parts Stolen . | . . . Parts Stripped . | . . . Power Chain Reactions . | . . . Missiles Intercepted . | . . . Alert | -11 -10 -10 ------- Run | Yrd Mat Min Peak Influence 253 | . 253 67 Initial 62 | . . 62 Average 94 | . 142 56 Maximum Alert Level 1 | . 1 . Low Security (%) 83 | 100 64 100 Level 1 16 | . 35 . Level 2 . | . . . Level 3 . | . . . Level 4 . | . . . Level 5 . | . . . High Security . | . . . Max Security . | . . . Squads Dispatched 2 | . 2 . Investigation . | . . . Extermination . | . . . Reinforcement 2 | . 2 . Assault . | . . . Garrison . | . . . Intercept . | . . . Searches Triggered . | . . . Construction Impeded . | . . . Haulers Reinforced . | . . . Active Scanning Responses . | . . . Cargo Convoy Interrupts . | . . . Stealth | -11 -10 -10 --------- Run | Yrd Mat Min Distress Signals 2 | . 2 . Communications Jammed . | . . . Distress Signals . | . . . Times Spotted 27 | . 15 12 Peak Tracking Total 9 | . 5 9 Tactical Retreats 1 | . 1 . Traps | -11 -10 -10 ------- Run | Yrd Mat Min Traps Triggered . | . . . Indirectly . | . . . Trap Hack Attempts . | . . . Triggered . | . . . Disarmed . | . . . Reprogrammed . | . . . Reused . | . . . Traps Extracted . | . . . Installed . | . . . Triggered . | . . . Machines | -11 -10 -10 ---------- Run | Yrd Mat Min Machines Disabled 1 | . 1 . Max in Single Turn 1 | . 1 . Machines Repaired . | . . . Machines Dismantled . | . . . Machines Sabotaged . | . . . Overloaded Fab Kills . | . . . Hacking | -11 -10 -10 --------- Run | Yrd Mat Min Machines Accessed 2 | . 2 . Terminals 2 | . 2 . Fabricators . | . . . Repair Stations . | . . . Recycling Units . | . . . Scanalyzers . | . . . Garrison Access . | . . . Total Hacks 4 | . 4 . Successful 2 | . 2 . Failed 2 | . 2 . Catastrophic . | . . . Database Lockouts . | . . . Manual 1 | . 1 . Terminals 4 | . 4 . Fabricators . | . . . Repair Stations . | . . . Recycling Units . | . . . Scanalyzers . | . . . Garrison Access . | . . . Terminal Hacks 2 | . 2 . Robot Analysis 1 | . 1 . Hauler Manifests 1 | . 1 . Fabricator Hacks . | . . . Repair Station Hacks . | . . . Recycling Unit Hacks . | . . . Scanalyzer . | . . . Garrison Access Hacks . | . . . Unauthorized Hacks . | . . . Terminals . | . . . Fabricators . | . . . Repair Stations . | . . . Recycling Units . | . . . Scanalyzers . | . . . Garrison Access . | . . . Data Cores Recovered . | . . . Used . | . . . Hacking Detections . | . . . Full Trace Events . | . . . Feedback Events . | . . . Feedback Blocked . | . . . Robot Schematics Acquired . | . . . Robots Built . | . . . Authchips . | . . . Time . | . . . Total Robot Build Rating . | . . . Part Schematics Acquired . | . . . Parts Built . | . . . Authchips . | . . . Time . | . . . Total Part Build Rating . | . . . Parts Repaired . | . . . Time . | . . . Parts Recycled . | . . . Recycled Matter . | . . . Retrieved Matter . | . . . Retrieved Components . | . . . Parts Scanalyzed . | . . . Part Schematics Acquired . | . . . Parts Damaged . | . . . Bothacking | -11 -10 -10 ------------ Run | Yrd Mat Min Used RIF Installer . | . . . Robots Hacked . | . . . Non-combat . | . . . Combat . | . . . Robot Hacks Applied . | . . . Relay Couplers Released . | . . . Fabnet Peak Effective % . | . . . Robots Rewired . | . . . Allies Hacked . | . . . Hacks Repelled . | . . . Allies | -11 -10 -10 -------- Run | Yrd Mat Min Total Allies . | . . . Largest Group . | . . . Highest-Rated Group . | . . . Highest-Rated Ally . | . . . Total Orders . | . . . Ally Attacks . | . . . Total Damage . | . . . Kills . | . . . Allies Corrupted . | . . . Allies Melted . | . . . Intel | -11 -10 -10 ------- Run | Yrd Mat Min Robot Analysis Total 1 | . 1 . Derelict Logs Recovered 1 | . . 1 Drone Launches . | . . . Drone Recoveries . | . . . Exploration | -11 -10 -10 ------------- Run | Yrd Mat Min Turns Passed 1150 | 60 551 539 Spaces Moved 604 | 39 250 315 Core 14 | 14 . . Treads 590 | 25 250 315 Legs . | . . . Wheels . | . . . Hover . | . . . Flight . | . . . Fastest Speed 50 | 50 160 160 Average Speed 157 | 120 160 161 Slowest Speed 240 | 160 160 240 Overloaded Moves . | . . . Propulsion Burnouts . | . . . Robots Hopped . | . . . Cave-ins Triggered . | . . . Exploration Rate (%) 37 | 4 44 65 Regions Visited 2 Branch Regions 1 Pre-discovered Areas . | . . . Known Exits Taken . | . . . Unknown Exits Taken 2 | 1 1 . Scrap Searched 1 | . . 1 Spaces Dug . | . . . Terrain Destroyed 1 | . . 1 Melee . | . . . Projectile 1 | . . 1 AOE . | . . . Terrain Rammed . | . . . Walls Destroyed . | . . . Machines Disabled . | . . . Actions | -11 -10 -10 --------- Run | Yrd Mat Min Total 718 | 52 337 329 Wait 33 | . 33 . Move 602 | 38 249 315 Hop . | . . . Pick Up 24 | 8 16 . Fast Attach 1 | . 1 . Attach 13 | 6 2 5 Detach . | . . . Swap . | . . . Drop 3 | . 3 . Fire 42 | . 33 9 Melee . | . . . Ram . | . . . Kick . | . . . Crush . | . . . Escape Stasis . | . . . Rewire . | . . . Trap . | . . . Miscellaneous . | . . . Route ------- -11/Scrapyard -10/Materials (discovered 3 exits: [*Mat] / [*Min x2]) -10/Mines (discovered 1 exit: [*Mat]) History --------- Turn | Location | Event 6 | -11/Scrapyard | Discovered new exit (range 13) 61 | -11/Scrapyard | Entered Materials 300 | -10/Materials | Build established: Mutant 313 | -10/Materials | Discovered new exit (range 13) 542 | -10/Materials | Discovered new exit (range 13) 588 | -10/Materials | Discovered new exit (range 16) 612 | -10/Materials | Entered Mines 779 | -10/Mines | Learned Materials machine intel 831 | -10/Mines | Found a hidden stash of uninstalled traps 960 | -10/Mines | YI-UF0 nonchalantly dropped a Grenade Launcher on the ground 1096 | -10/Mines | Assembled infested the area 1101 | -10/Mines | Assisted by a Guerilla fighting off Assembled 1111 | -10/Mines | Core integrity fell below 50% 1125 | -10/Mines | Discovered new exit (range 15) 1134 | -10/Mines | Core integrity fell below 20% 1151 | -10/Mines | Destroyed by as-73244 with Assembled Blade Last Messages --------------- 01114_ Ion Engine destroyed. 01117_ D-53 Grenadier destroyed. 01118_ The unstable cave ceiling collapses. 01120_ D-53 Grenadier knocked back. 01122_ The unstable cave ceiling collapses. 01125_ Lgt. Treads destroyed. 01125_ EXIT=FOUND 01126_ The unstable cave ceiling collapses. 01127_ D-53 Grenadier knocked back. 01129_ The unstable cave ceiling collapses. 01129_ D-53 Grenadier destroyed. 01130_ The unstable cave ceiling collapses. 01139_ Lgt. Armor Plating destroyed. 01143_ Assault Rifle destroyed. 01144_ The unstable cave ceiling collapses. 01146_ Lgt. Cannon destroyed. 01148_ Lgt. Treads destroyed. 01151_ The unstable cave ceiling collapses. 01151_ Ion Engine destroyed. 01151_ System corrupted by crushing effect (+3). Map ----- +----------------------------------------------------+ | ???## #??????# """ | | ????# #?????# """ ### | | ????## #?????# """ #???? | | ??????# ##??#### #???? | | ???????# ##???#=% #???? | | ????????###????# ## #???? | | ???????????????# ## #???? | | ???????????????# #########???? | | ??????#######??# #???????????? | | ?????## #### ##??????????? | | ???### # #??????????? | | ???# # #######????? | | ???# # #? | | ???# #########????? | | ???# # ###????????????? | | ???# # #??????????????? | | ??## # # ##??????????????? | | ??# # ###???????????????? | | ??### ##????????????????? | | ?## ##?????????????????? | | ?# a #??????????????????? | | ?# aa ##??????????????????? | | ?## ####???????????????????? | | ??##aa#??????????????????????? | | ??##aa#####??????????????????? | | ??# @ #??????????????????? | | ??# """ #??????????????????? | | ??# """ #??????????????????? | | ??# """ #??????????????????? | | ??# < #??????????????????? | | ??# """ #??????????????????? | | ??# """ #??????????????????? | | ??# ""?????????????????????? | | ??# ??????????????????????? | | ??#####??????????????????????? | | ?????????????????????????????? | | ?????????????????????????????? | | ?????????????????????????????? | | | | | | | | | | | | | | | | | | | | | | | | | +----------------------------------------------------+ Best States ------------- Heat Dissipation 25 Energy Generation 10 Energy Capacity 250 Matter Stores 300 Matter Capacity 300 Sight Range 16 Terrain Scan Density 10 Armor Coverage 150 Evasion (%) 50 Recoil Reduction 2 Item Schematics ----------------- None Robot Schematics ------------------ None Fabricated ------------ Nothing Alien Tech Used ----------------- None Achievements -------------- None Challenges ------------ None Game ------ Seed StormStorageModule Manual? 0 Play Time 00:07:00 Cumulative 142.5 hours Start 2024.01.18 @ 19:26:30 End 2024.01.18 @ 19:31:31 Sessions 1 Manual Loads 0 Difficulty Rogue Special Mode None Game No. 161 Rogue 125 Adventurer 36 Explorer 0 Win Type - Total 8 Types 2/0/6/0/0/0/0/0/0 Lore% 54 Gallery% 78 Achievement% 65 Wizard Run 0 Options --------- ASCII 0 Keyboard 0 Movement Mouse Keybinds 0 Fullscreen 1 Font 18/SmallcapsGlow Map View 76x50 Zoom Use 0% Tactical HUD 1 Map Filters NONE Filters NONE Steam 1 RUN: 224e53aa-b65d-4091-99ae-231fd2f85754